bitfinex-derivatives/quotes_ETHF0:USTF0_20240910
["timestamp","ask_amount","ask_price","bid_price","bid_amount"]
[1725983408834,0.42806,2336.0,2335.9,0.21145146]
[1725983409136,0.42811,2335.8,2335.5,41.90338987]
[1725983409431,0.42811,2335.8,2335.6,0.66916259]
[1725983409432,3.0,2335.8,2335.6,0.66916259]
[1725983409734,1.12067303,2335.7,2335.1,1.77193554]
[1725983409933,3.0,2335.3,2335.2,1.09746236]
[1725983410135,4.12067303,2335.7,2335.2,1.74007997]
[1725983410324,1.12067303,2335.7,2335.3,41.22817]
[1725983410631,1.12067303,2335.7,2334.9,1.10338987]
[1725983410838,0.42814,2335.6,2335.2,0.42819]
[1725983411034,4.82067303,2335.8,2335.0,1.74012288]
[1725983411035,1.54879303,2335.7,2335.3,0.42818]
[1725983411336,3.7,2335.5,2335.0,40.8]
[1725983411633,0.4039,2335.4,2335.0,40.8]
[1725983411940,0.3673,2335.3,2335.1,0.42822]
[1725983412232,0.3673,2335.3,2335.1,0.42821]
[1725983412427,0.3673,2335.3,2335.2,0.4282]
[1725983412629,0.3673,2335.3,2335.1,0.42821]
[1725983413022,0.3673,2335.3,2334.6,0.21391244]
[1725983413023,7.9824,2335.2,2334.6,0.21391244]
[1725983413227,3.7,2335.0,2334.1,0.88545032]
[1725983413431,4.0764,2335.2,2334.1,0.4004]
[1725983413625,4.0764,2335.2,2334.5,0.42832]
[1725983413833,4.0764,2335.2,2334.5,0.63975006]
[1725983414027,4.0764,2335.2,2334.5,0.21143006]
[1725983414232,4.0764,2335.2,2334.2,40.8]
[1725983414427,0.42824,2335.0,2334.4,0.42834]
[1725983414630,4.0764,2335.2,2334.5,0.42833]
[1725983414631,0.42823,2335.1,2334.5,0.42833]
[1725983414825,0.42822,2335.1,2334.5,0.42833]
[1725983415040,0.42828,2334.8,2334.2,41.44188735]
[1725983415330,3.7,2335.0,2334.2,41.00984502]
[1725983415331,0.3818,2334.7,2334.2,41.00984502]
[1725983415535,0.3818,2334.7,2333.6,0.216]
[1725983415536,3.7,2334.6,2333.6,0.216]
[1725983415739,0.42835,2334.4,2333.3,0.5856]
[1725983415938,0.3901,2334.5,2333.3,0.3696]
[1725983416237,0.3818,2334.7,2333.7,1.0712]
[1725983416442,0.3818,2334.7,2334.5,0.42832]
[1725983416635,0.3818,2334.7,2333.9,1.07111]
[1725983416636,0.3818,2334.7,2334.0,40.8]
[1725983416834,0.3818,2334.7,2334.4,0.42834]
[1725983417343,0.3818,2334.7,2334.0,41.1696]
[1725983417540,0.3818,2334.7,2334.4,0.42835]
[1725983417737,0.3818,2334.7,2334.5,0.42832]
[1725983418146,0.3818,2334.7,2334.6,0.42831]
[1725983418436,0.3818,2334.7,2334.0,42.24066]
[1725983418437,0.3818,2334.7,2334.5,0.42832]
[1725983418643,0.3818,2334.7,2334.0,41.59639676]
[1725983418834,0.3818,2334.7,2334.3,0.42837]
[1725983419033,0.3861,2334.6,2334.0,41.1696]
[1725983419244,0.3861,2334.6,2334.5,0.42833]
[1725983419445,0.3861,2334.6,2334.4,0.42834]
[1725983419633,0.3861,2334.6,2334.5,0.42833]
[1725983419839,0.3861,2334.6,2334.2,0.42837]
[1725983420136,0.3861,2334.6,2334.2,0.42838]
[1725983420333,0.3861,2334.6,2334.3,0.42836]
[1725983420540,0.3861,2334.6,2334.0,41.1696]
[1725983420541,0.3861,2334.6,2334.0,40.8]
[1725983420843,0.42836,2334.4,2334.0,40.8]
[1725983421036,0.42841,2334.1,2333.5,0.216]
[1725983421234,0.7807,2334.0,2333.7,0.42847]
[1725983421543,0.7807,2334.0,2333.8,41.22846]
[1725983421737,0.7807,2334.0,2333.8,41.43796348]
[1725983421934,0.7807,2334.0,2333.8,41.00950348]
[1725983422542,0.7807,2334.0,2333.3,0.81413227]
[1725983422734,0.7807,2334.0,2333.5,0.4285]
[1725983422940,0.7807,2334.0,2333.7,0.42847]
[1725983423438,0.7807,2334.0,2333.6,0.42848]
[1725983423643,1.20914,2334.0,2333.5,0.42851]
[1725983423838,4.4807,2334.0,2332.8,1.28761]
[1725983424043,0.42845,2333.9,2333.4,0.42852]
[1725983424240,4.9247,2334.0,2333.5,0.64477272]
[1725983424241,1.20914,2334.0,2333.5,0.64477272]
[1725983424441,1.20914,2334.0,2333.0,1.07152]
[1725983424739,4.4807,2334.0,2333.4,0.42853]
[1725983424941,5.5518,2334.0,2332.9,0.3969]
[1725983425147,5.5518,2334.0,2332.8,0.42854045]
[1725983425148,4.4807,2334.0,2332.8,0.42854045]
[1725983425345,4.4807,2334.0,2332.7,0.216]
[1725983425346,0.42847,2333.8,2333.3,0.42854]
[1725983425541,0.42849,2333.7,2333.2,0.42857]
[1725983425745,0.42849,2333.7,2332.8,1.07161]
[1725983425944,0.4285,2333.6,2332.8,1.07161]
[1725983426242,0.42849,2333.7,2333.2,0.42855]
[1725983426443,0.401,2333.8,2332.8,1.07161]
[1725983426633,0.42849,2333.7,2333.2,0.42856]
[1725983426838,0.401,2333.8,2333.1,0.42858]
[1725983427034,0.42852,2333.5,2332.9,40.8]
[1725983427241,4.482,2333.4,2332.8,0.42863]
[1725983427651,0.42858,2333.2,2332.7,0.42865]
[1725983427848,4.101,2333.1,2332.2,0.21172966]
[1725983428143,4.101,2333.1,2332.5,0.42869]
[1725983428345,4.5296,2333.1,2332.6,41.22868]
[1725983428539,4.101,2333.1,2332.6,40.8]
[1725983428735,0.42862,2333.0,2332.6,40.8]
[1725983428945,0.42861,2333.0,2332.6,40.8]
[1725983429145,4.101,2333.1,2332.6,40.8]
[1725983429946,0.42861,2333.0,2332.6,41.22868]
[1725983430147,0.42861,2333.0,2332.6,40.8]
[1725983430551,4.101,2333.1,2332.6,40.8]
[1725983431045,4.52959,2333.1,2332.6,40.8]
[1725983431247,3.7,2332.7,2332.0,0.1]
[1725983431454,3.7,2332.4,2332.0,0.1]
[1725983431749,3.7,2332.1,2331.5,0.42856614]
[1725983432053,3.7,2332.1,2330.1,0.4288]
[1725983432054,3.7,2332.4,2331.2,0.216]
[1725983432345,14.4869739,2332.5,2331.3,44.9001]
[1725983432546,14.4869739,2332.5,2331.8,0.42883]
[1725983432547,0.42873,2332.4,2331.8,0.42883]
[1725983432847,14.4869739,2332.5,2331.3,44.9001]
[1725983432848,4.12871,2332.5,2331.3,41.63003836]
[1725983433051,3.7,2332.5,2331.4,1.07225]
[1725983433246,3.7,2332.8,2331.5,0.3967]
[1725983433546,10.87264802,2332.7,2332.2,0.42874]
[1725983433754,10.87264802,2332.7,2332.2,0.42875]
[1725983433953,11.30130802,2332.7,2332.1,0.42876]
[1725983434149,10.87264802,2332.7,2331.5,0.3967]
[1725983434452,1.22797,2332.7,2332.1,0.42876]
[1725983434749,1.22797,2332.7,2331.5,0.3967]
[1725983434750,3.7,2332.5,2331.5,0.3967]
[1725983434952,0.7993,2332.7,2331.6,1.15098548]
[1725983435149,0.42871,2332.5,2331.7,0.07881548]
[1725983435350,0.42871,2332.5,2331.3,45.76798516]
[1725983435351,0.42874,2332.3,2331.3,41.63003836]
[1725983435545,0.42874,2332.3,2331.4,0.47551693]
[1725983435851,0.42873,2332.4,2331.9,0.42881]
[1725983436153,0.42873,2332.4,2331.8,0.42881]
[1725983436358,0.42875,2332.3,2331.4,0.3967]
[1725983436660,3.7,2332.0,2331.4,0.3967]
[1725983436855,0.42884,2331.8,2331.3,41.22892]
[1725983437049,0.42885,2331.7,2331.2,0.42892]
[1725983437350,0.7773,2331.9,2331.0,0.382]
[1725983437546,0.7773,2331.9,2331.1,40.87883132]
[1725983437745,0.7773,2331.9,2331.5,0.42887]
[1725983437947,0.7773,2331.9,2331.1,41.01038048]
[1725983438142,1.07185,2332.3,2331.2,0.07882908]
[1725983438342,1.07185,2332.3,2330.7,0.216]
[1725983438343,4.083,2331.8,2330.7,0.216]
[1725983438543,4.083,2331.8,2330.3,0.216]
[1725983438544,3.7,2331.5,2330.3,0.216]
[1725983438745,3.7,2331.5,2330.2,0.7494]
[1725983438746,3.7,2331.2,2330.4,40.8]
[1725983438950,4.12895,2331.2,2330.4,40.8]
[1725983439142,0.42896,2331.1,2330.6,0.42904]
[1725983439344,0.7655,2331.1,2330.4,40.8]
[1725983439549,0.7655,2331.1,2330.4,41.22908]
[1725983439746,3.7,2330.9,2330.3,0.42909]
[1725983439954,3.7,2330.9,2330.2,0.42912]
[1725983440150,3.7,2330.9,2330.0,0.2]
[1725983440151,3.7,2330.6,2330.0,0.2]
[1725983440348,0.42909,2330.4,2330.1,40.8]
[1725983440559,0.3976,2330.5,2330.1,40.8]
[1725983440951,4.0785,2330.9,2330.1,40.8]
[1725983441150,0.3679,2331.1,2330.1,40.8]
[1725983441151,4.5243,2331.0,2330.1,40.8]
[1725983441354,0.4043,2331.0,2330.1,41.1654]
[1725983441554,0.3679,2331.1,2330.2,0.3943]
[1725983441860,0.42897,2331.0,2330.2,0.3943]
[1725983442058,4.12,2331.0,2330.2,0.3943]
[1725983442254,0.42903,2330.7,2330.2,0.42911]
[1725983442451,0.42905,2330.6,2330.2,0.42911]
[1725983442754,0.4043,2330.9,2330.1,41.1654]
[1725983442755,0.42904,2330.7,2330.1,41.1654]
[1725983443152,0.4043,2330.9,2330.6,0.42903]
[1725983443352,0.79686,2331.1,2330.7,0.42903]
[1725983443553,0.3679,2331.1,2330.2,1.07281]
[1725983443860,4.12,2331.3,2330.5,1.07267]
[1725983444059,4.12,2331.3,2331.0,0.42897]
[1725983444357,4.12,2331.3,2330.5,1.07267]
[1725983444358,4.12,2331.3,2330.8,0.21514515]
[1725983444658,4.12,2331.3,2330.3,1.43946]
[1725983444854,4.54893,2331.3,2330.9,0.42898]
[1725983445064,4.54893,2331.3,2330.3,1.43946]
[1725983445065,4.12,2331.3,2330.7,0.21827875]
[1725983445249,0.42889,2331.5,2330.8,0.3728]
[1725983445446,0.8048,2331.6,2330.8,0.3728]
[1725983445655,0.8048,2331.6,2330.9,0.3667]
[1725983445852,1.23367,2331.6,2330.9,0.3667]
[1725983446057,0.8048,2331.6,2330.9,1.43914]
[1725983446257,8.264,2331.9,2331.1,1.0724]
[1725983446459,8.264,2331.9,2331.0,40.8]
[1725983446460,4.12,2331.9,2331.0,40.8]
[1725983446657,0.42887,2331.6,2331.2,0.42892]
[1725983446858,0.42889,2331.5,2331.1,0.42894]
[1725983447056,4.12,2331.2,2330.5,0.216]
[1725983447256,4.488,2331.1,2330.2,0.3728]
[1725983447456,4.488,2331.1,2330.3,0.07885789]
[1725983447457,4.12,2330.8,2330.3,0.07885789]
[1725983447656,4.12,2330.8,2330.3,40.8]
[1725983447657,1.47711,2330.7,2330.3,40.8]
[1725983447860,1.47711,2330.7,2330.0,0.2]
[1725983447861,0.42912,2330.2,2330.0,0.2]
[1725983448162,4.12,2330.5,2330.0,0.2]
[1725983448458,0.42909,2330.4,2330.1,41.22913]
[1725983448662,4.12,2330.5,2330.1,41.22913]
[1725983448857,4.12,2330.5,2330.1,40.8]
[1725983449260,0.42911,2330.3,2330.1,40.8]
[1725983449452,4.12,2330.5,2330.1,40.8]
[1725983449962,0.42911,2330.3,2330.1,40.8]
[1725983450155,0.42912,2330.2,2330.0,0.2]
[1725983450353,4.12,2330.5,2330.0,0.62914]
[1725983450553,0.42909,2330.4,2330.0,0.2]
[1725983450753,0.4045,2330.7,2330.1,40.8]
[1725983450955,4.5204,2331.4,2330.3,1.07276]
[1725983451157,4.5204,2331.4,2330.2,1.85]
[1725983451460,4.5204,2331.4,2330.8,0.429]
[1725983451461,4.54896,2331.1,2330.8,0.429]
[1725983451658,4.12,2331.1,2330.7,0.42902]
[1725983451867,4.54896,2331.1,2330.7,0.42902]
[1725983452064,4.54896,2331.1,2330.2,1.84999]
[1725983452065,4.12,2331.1,2330.8,0.429]
[1725983452361,0.42893,2331.3,2330.5,1.07267]
[1725983452561,0.42893,2331.3,2330.3,1.07276]
[1725983452761,5.5927,2331.4,2330.4,0.0788502]
[1725983452961,4.12,2331.0,2330.7,0.42902]
[1725983453259,4.12,2331.0,2330.2,1.84999]
[1725983453469,0.7941,2330.9,2330.2,0.7772]
[1725983453653,0.3651,2330.9,2330.3,1.07276]
[1725983453857,4.12,2331.3,2330.5,1.07266]
[1725983454053,0.42895,2331.2,2330.4,1.07272]
[1725983454253,4.12,2331.3,2330.4,1.07272]
[1725983454254,4.54893,2331.3,2330.9,0.42898]
[1725983454457,4.54893,2331.3,2330.4,1.07272]
[1725983454458,4.54893,2331.3,2331.0,0.42897]
[1725983454863,4.54893,2331.3,2330.9,0.42899]
[1725983454864,0.42894,2331.2,2330.9,0.42899]
[1725983455667,4.12,2331.0,2330.2,0.9932]
[1725983455965,0.42896,2331.1,2330.8,0.42901]
[1725983456164,4.91532,2331.3,2330.9,0.42897]
[1725983456368,4.4864,2331.3,2330.8,0.42901]
[1725983456570,4.4864,2331.3,2330.9,0.42899]
[1725983456865,4.91532,2331.3,2331.0,0.42897]
[1725983457065,1.07204,2331.9,2330.7,0.21839149]
[1725983457263,4.12,2331.9,2330.9,1.07249]
[1725983457466,4.12,2331.9,2331.5,0.42887]
[1725983457467,10.88116995,2331.8,2331.5,0.42887]
[1725983457666,10.88116995,2331.8,2331.1,1.07238]
[1725983457667,4.54882,2331.9,2331.1,1.07238]
[1725983457966,0.7387,2332.2,2331.1,1.07238]
[1725983457967,4.12,2331.6,2331.1,0.42896]
[1725983458158,4.12,2331.4,2330.0,0.2]
[1725983458359,5.19228,2331.4,2330.8,0.42901]
[1725983458567,4.12,2331.4,2330.9,40.8]
[1725983459069,4.54892,2331.4,2331.0,0.42896]
[1725983459271,4.12,2331.4,2330.9,40.8]
[1725983459470,4.5489,2331.4,2331.1,0.42894]
[1725983459668,0.7387,2331.5,2330.9,40.8]
[1725983459975,0.7387,2331.5,2331.0,0.3786]
[1725983460278,4.12,2331.3,2330.9,40.8]
[1725983460466,4.54897,2331.0,2330.9,40.8]
[1725983460770,4.12,2331.0,2330.2,1.84369]
[1725983461075,0.42895,2331.2,2330.4,1.07272]
[1725983461371,4.12,2331.0,2330.3,40.8]
[1725983461569,0.3772,2330.9,2330.5,0.42906]
[1725983461768,0.7543,2330.9,2330.6,0.42904]
[1725983462077,0.7543,2330.9,2330.7,0.42902]
[1725983462269,0.7543,2330.9,2330.3,40.8]
[1725983462573,0.3772,2330.9,2330.4,1.0727]
[1725983462878,0.3772,2330.9,2330.8,0.42901]
[1725983463466,0.3909,2331.1,2330.5,1.07265]
[1725983463770,4.5071,2331.3,2330.6,1.0726]
[1725983463972,0.3871,2331.3,2331.1,0.42895]
[1725983464369,4.5109,2331.6,2330.8,0.60450578]
[1725983464580,0.3871,2331.7,2330.9,1.15132936]
[1725983464768,0.3871,2331.7,2330.8,0.7581]
[1725983464769,0.42888,2331.5,2331.1,0.42894]
[1725983464961,4.12,2331.6,2331.2,0.42893]
[1725983465182,4.12,2331.6,2330.8,1.83061]
[1725983465362,4.12,2331.6,2331.3,0.42891]
[1725983465563,0.3871,2331.7,2331.0,0.21620021]
[1725983465780,0.3871,2331.7,2330.9,1.07249]
[1725983466075,0.42893,2331.3,2330.9,0.6424777]
[1725983466281,4.12,2331.6,2330.9,0.2134977]
[1725983466475,4.12,2331.3,2330.9,0.2134977]
[1725983466870,4.12,2331.3,2331.0,0.42896]
[1725983467076,4.12,2331.6,2331.3,0.42891]
[1725983467278,0.3909,2331.8,2331.0,1.07244]
[1725983467581,0.3909,2331.8,2331.6,0.42885]
[1725983467776,0.3909,2331.8,2331.7,0.42885]
[1725983467980,0.3909,2331.8,2331.4,41.01053693]
[1725983467981,0.3727,2332.1,2331.5,1.07221]
[1725983468274,1.07154,2333.0,2331.5,1.07221]
[1725983468275,4.12,2332.4,2331.6,1.07217]
[1725983468482,4.12,2332.4,2331.5,1.07221]
[1725983468678,4.12,2332.4,2331.4,42.45265693]
[1725983468881,4.12,2332.1,2331.7,0.42884]
[1725983469073,4.12,2332.1,2331.4,41.38043693]
[1725983469272,0.4288,2332.0,2331.4,41.38043693]
[1725983469477,0.3804,2331.9,2331.5,0.42888]
[1725983469883,0.3804,2331.9,2331.6,0.42886]
[1725983470085,0.3804,2331.9,2331.7,0.42884]
[1725983470271,0.3804,2331.9,2331.4,41.1699]
[1725983470581,0.3804,2331.9,2331.6,0.42886]
[1725983470774,0.3804,2331.9,2331.4,41.1699]
[1725983470974,0.3804,2331.9,2331.6,0.42886]
[1725983471176,0.3804,2331.9,2331.4,41.80836145]
[1725983471576,0.80921,2331.9,2331.4,41.80836145]
[1725983471784,0.80921,2331.9,2331.4,41.37947145]
[1725983471785,0.3804,2331.9,2331.4,41.37947145]
[1725983472172,0.3804,2331.9,2331.6,0.42886]
[1725983472482,0.3804,2331.9,2331.4,41.37947145]
[1725983472681,0.7652,2331.9,2331.7,0.42884]
[1725983472980,0.42886,2331.7,2331.2,0.42894]
[1725983473277,4.12,2331.8,2330.8,0.5894]
[1725983473278,4.12,2331.8,2330.9,0.3777]
[1725983473479,4.12,2331.5,2330.9,41.1777]
[1725983473686,4.12,2331.5,2331.0,0.67043994]
[1725983473883,4.12,2331.5,2331.1,0.42895]
[1725983475078,4.12,2331.5,2331.0,0.42897]
[1725983475583,4.12,2331.5,2330.9,0.3777]
[1725983475788,0.42891,2331.4,2330.9,0.3777]
[1725983476084,0.3691,2331.3,2331.0,0.42896]
[1725983476385,0.3691,2331.3,2330.9,0.3777]
[1725983476687,0.3691,2331.3,2331.0,1.0994027]
[1725983476881,0.3691,2331.3,2331.1,0.42895]
[1725983477076,0.3691,2331.3,2330.9,0.3777]
[1725983477279,0.3691,2331.3,2331.1,0.42895]
[1725983477476,0.3691,2331.3,2331.2,0.67042728]
[1725983477878,4.94018,2331.5,2331.2,1.09935728]
[1725983477879,4.12,2331.5,2331.2,1.09935728]
[1725983478075,4.12,2331.5,2331.2,0.42893]
[1725983478676,4.12,2331.5,2330.9,0.3777]
[1725983478888,0.42893,2331.3,2331.0,1.74304702]
[1725983479184,4.12,2331.2,2330.6,40.8]
[1725983479485,4.5084,2331.2,2330.8,0.429]
[1725983479678,4.5084,2331.2,2330.9,0.67049174]
[1725983479876,0.42896,2331.1,2330.7,0.21799101]
[1725983480079,4.5084,2331.2,2330.8,0.67052619]
[1725983480383,0.42897,2331.1,2330.7,0.42902]
[1725983480579,4.12,2331.0,2330.6,40.8]
[1725983480883,4.54899,2331.0,2330.7,0.67057572]
[1725983481094,4.12,2331.0,2330.6,41.01204892]
[1725983481284,4.12,2331.0,2330.6,40.8]
[1725983481481,0.4044,2330.9,2330.2,1.10338987]
[1725983481681,4.54908,2330.4,2330.3,0.67063018]
[1725983481881,4.12,2330.4,2330.1,0.42913]
[1725983482182,4.12,2330.2,2330.0,0.2]
[1725983482489,10.12,2330.2,2330.0,0.2]
[1725983482690,4.6964,2330.1,2330.0,0.2]
[1725983483188,0.4044,2330.1,2330.0,0.2]
[1725983483377,5.12554,2330.1,2330.0,0.2]
[1725983483780,4.6964,2330.1,2330.0,0.2]
[1725983484085,5.12554,2330.1,2330.0,0.2]
[1725983484279,10.6964,2330.1,2329.4,0.67087298]
[1725983484481,4.12,2329.8,2329.3,0.3824]
[1725983484680,4.12,2329.8,2329.5,0.42924]
[1725983484891,4.12,2329.8,2329.5,0.51483984]
[1725983485291,4.12,2329.8,2329.5,0.42924]
[1725983486085,4.2928,2329.7,2328.9,40.8]
[1725983486286,0.4293,2329.3,2328.8,0.57738688]
[1725983486491,4.12,2329.1,2328.7,0.42939]
[1725983486792,4.12,2329.1,2328.8,40.8]
[1725983487088,1.81797,2329.7,2328.8,40.8]
[1725983487089,4.12,2329.4,2328.8,40.8]
[1725983487688,4.12,2329.1,2328.8,40.8]
[1725983488093,4.12,2329.1,2328.8,41.01533257]
[1725983488288,4.12,2329.1,2328.8,40.8]
[1725983488586,4.12,2329.1,2328.8,41.01715706]
[1725983488792,1.1156,2329.7,2328.8,41.01715706]
[1725983488793,4.12,2329.4,2328.8,41.01715706]
[1725983489087,14.78009231,2329.4,2328.9,0.42936]
[1725983489288,14.78009231,2329.4,2328.8,41.01715706]
[1725983489478,4.12,2329.4,2328.8,41.01715706]
[1725983489785,4.8671,2329.7,2328.8,40.8]
[1725983490088,0.42915,2330.1,2329.0,1.07334]
[1725983490384,4.4991,2330.3,2329.1,1.56692562]
[1725983490593,4.92821,2330.3,2329.8,0.42919]
[1725983490780,4.92821,2330.3,2329.2,1.28765186]
[1725983490781,4.4991,2330.3,2329.9,0.42917]
[1725983490982,4.4991,2330.3,2329.2,1.84607]
[1725983491182,4.4991,2330.3,2329.5,1.07313]
[1725983491485,4.12,2330.8,2329.9,0.03118932]
[1725983491688,4.12,2330.8,2330.0,1.8665]
[1725983491988,4.12,2330.8,2330.3,0.42909]
[1725983492175,4.12,2330.8,2330.0,0.7936]
[1725983492176,4.12,2330.8,2330.0,1.01130498]
[1725983492378,4.12,2330.8,2330.1,40.8]
[1725983492688,4.12,2331.1,2330.4,0.03118932]
[1725983492888,4.54896,2331.1,2330.4,0.03118932]
[1725983493089,4.12,2331.1,2330.7,0.42902]
[1725983493288,0.42898,2331.0,2330.4,0.03118932]
[1725983493593,4.12,2330.8,2330.7,0.03118932]
[1725983493889,4.12,2330.8,2330.7,0.05875261]
[1725983494193,5.2769,2331.2,2330.7,4.77818261]
[1725983494488,4.8866,2331.2,2330.8,0.429]
[1725983494689,4.8866,2331.2,2330.8,0.42901]
[1725983494989,4.8866,2331.2,2331.0,0.05875261]
[1725983495190,5.31555,2331.2,2331.0,0.05875261]
[1725983495392,4.71856,2331.1,2331.0,0.05875261]
[1725983495597,0.42904,2330.7,2330.1,41.016]
[1725983495789,0.42904,2330.7,2330.2,0.42911]
[1725983495790,4.12,2330.7,2330.2,0.42911]
[1725983495989,4.54904,2330.7,2330.2,0.42911]
[1725983496188,4.12,2330.7,2330.1,40.8]
[1725983496394,0.42907,2330.5,2330.1,40.8]
[1725983496597,4.12,2330.7,2330.1,40.8]
[1725983496892,4.54909,2330.4,2329.6,0.3775]
[1725983497100,4.12,2330.4,2329.6,0.3775]
[1725983497298,0.4291,2330.3,2329.8,0.42919]
[1725983497497,0.42917,2330.0,2329.7,40.8]
[1725983497697,0.42917,2330.0,2329.6,0.3775]
[1725983497903,4.12,2330.1,2329.0,1.11282254]
[1725983498091,1.07282,2330.2,2329.4,0.42927]
[1725983498092,4.12,2329.8,2329.4,0.42927]
[1725983498294,4.12,2329.8,2329.1,40.8]
[1725983498500,4.12,2329.8,2329.2,0.51477585]
[1725983498795,4.5062,2330.1,2329.6,0.42923]
[1725983498996,4.5062,2330.1,2329.1,42.38808368]
[1725983499193,1.12067303,2330.9,2330.1,0.42913]
[1725983499497,10.77081965,2330.6,2330.1,0.64715587]
[1725983499694,10.77081965,2330.6,2329.7,0.3749]
[1725983499901,4.54909,2330.4,2329.9,0.42918]
[1725983500086,4.12,2330.4,2329.7,0.3749]
[1725983500291,4.12,2330.4,2329.8,0.42919]
[1725983500597,4.12,2330.4,2329.7,0.3749]
[1725983500598,4.12,2330.4,2330.0,0.42915]
[1725983500801,0.42911,2330.3,2329.7,0.3749]
[1725983500991,4.12,2330.4,2329.7,0.8041]
[1725983501296,0.42913,2330.2,2329.7,0.4292]
[1725983501498,0.42913,2330.2,2329.7,0.42921]
[1725983501696,1.07258,2330.7,2329.3,0.90638888]
[1725983501897,4.54915,2330.1,2329.6,0.42922]
[1725983502102,4.12,2330.1,2329.3,0.3916]
[1725983502494,0.42911,2330.3,2329.4,1.07318]
[1725983502691,4.54909,2330.4,2329.4,1.07318]
[1725983502999,4.12,2330.7,2330.3,0.4291]
[1725983503300,4.12,2330.7,2329.7,1.073]
[1725983503301,4.12,2330.7,2330.2,0.21733809]
[1725983503494,4.12,2330.7,2329.9,1.07293]
[1725983503697,4.12,2330.7,2330.4,0.42908]
[1725983504005,4.12,2331.1,2330.5,0.42906]
[1725983504189,4.5216,2331.1,2330.2,1.07281]
[1725983504390,0.4016,2331.1,2330.2,1.07281]
[1725983504802,0.83056,2331.1,2330.6,0.46019503]
[1725983505009,0.42899,2331.0,2330.6,0.03115503]
[1725983505310,4.95057,2331.1,2330.6,0.46020503]
[1725983505598,0.42902,2330.8,2330.6,0.03115503]
[1725983505797,4.12,2330.9,2330.0,41.1916]
[1725983505798,4.68828497,2330.7,2330.0,41.1916]
[1725983506001,4.54901,2330.9,2330.3,0.4291]
[1725983506205,4.12,2330.9,2330.1,0.21379425]
[1725983506501,4.12,2330.9,2330.0,41.40801249]
[1725983506502,5.1925,2330.9,2330.0,41.40801249]
[1725983506692,4.12,2330.6,2330.0,40.8]
[1725983506891,0.4291,2330.4,2330.0,40.8]
[1725983507095,1.58498,2330.5,2330.0,41.22916]
[1725983507289,0.42909,2330.4,2330.0,40.8]
[1725983507494,1.58497,2330.5,2330.0,41.22916]
[1725983507690,0.7849,2330.5,2330.0,41.01336503]
[1725983507902,0.7849,2330.5,2330.1,0.42912]
[1725983508090,0.7849,2330.5,2330.2,0.42911]
[1725983508493,0.7849,2330.5,2330.1,0.42913]
[1725983509098,1.21397,2330.5,2330.1,0.42913]
[1725983509402,0.7849,2330.5,2329.7,1.07304]
[1725983509700,0.4291,2330.4,2329.9,0.42916]
[1725983510001,0.7849,2330.5,2329.6,40.8]
[1725983510304,1.21398,2330.5,2330.1,0.42913]
[1725983510492,0.42908,2330.4,2330.0,0.42915]
[1725983510688,0.4291,2330.3,2329.9,0.42917]
[1725983510889,4.12,2330.3,2329.6,40.8]
[1725983511094,4.12,2330.3,2329.8,0.42918]
[1725983511292,4.12,2330.3,2329.6,40.8]
[1725983511497,4.54911,2330.3,2329.9,0.42917]
[1725983511694,0.42912,2330.2,2329.8,0.42918]
[1725983511894,0.7849,2330.5,2329.6,40.8]
[1725983512101,27.51755432,2332.8,2329.7,1.07304]
[1725983512102,5.26467303,2331.1,2329.7,1.07304]
[1725983512404,0.42899,2330.9,2330.4,0.42907]
[1725983512702,15.7805118,2331.0,2330.1,1.07286]
[1725983512909,15.7805118,2331.0,2330.1,1.87086]
[1725983513092,16.2095018,2331.0,2330.6,0.42905]
[1725983513405,16.2095018,2331.0,2330.3,0.21344591]
[1725983513406,15.7805118,2331.0,2330.3,0.21344591]
[1725983513592,15.7805118,2331.0,2330.1,1.87086]
[1725983514108,0.751,2331.0,2330.3,1.07276]
[1725983514603,0.3657,2331.0,2330.9,0.42899]
[1725983514900,4.54893,2331.3,2330.9,0.42899]
[1725983515101,4.54893,2331.3,2330.9,0.42898]
[1725983516003,4.54893,2331.3,2330.4,1.07269]
[1725983516004,4.12,2331.3,2330.5,40.8]
[1725983516300,0.42894,2331.2,2330.8,0.429]
[1725983517201,4.12,2331.3,2331.0,0.42897]
[1725983517408,4.12,2331.3,2330.5,41.87264]
[1725983517409,4.54892,2331.3,2330.9,0.42898]
[1725983518004,0.42895,2331.2,2330.8,0.429]
[1725983518303,0.7872,2331.4,2331.1,0.42894]
[1725983518806,0.7872,2331.4,2331.2,0.46010727]
[1725983519107,4.12,2331.3,2331.2,0.03116727]
[1725983519409,1.07235,2331.2,2330.5,0.42906]
[1725983519708,4.12,2330.9,2330.1,2.08268204]
[1725983520006,4.12,2330.9,2330.2,43.05808154]
[1725983520007,0.42899,2330.9,2330.2,43.05808154]
[1725983520209,4.12,2331.1,2330.3,0.51467583]
[1725983520402,0.42898,2331.0,2330.6,0.42904]
[1725983520799,4.12,2330.8,2330.2,40.8]
[1725983520996,0.3816,2330.7,2330.5,0.42905]
[1725983521195,0.3833,2330.9,2330.7,0.42903]
[1725983521398,0.3833,2330.9,2330.8,0.02754889]
[1725983521605,0.81229,2330.9,2330.8,0.02754889]